fUST/lending_fUST_20240805
["ID","MTS","AMOUNT","RATE_DAILY","PERIOD"]
[334233840,1722851446799,-500.0,0.00041643,31]
[334233841,1722851446808,-500.0,0.00041643,31]
[334233842,1722851446818,-500.0,0.00041643,31]
[334233843,1722851446827,-895.06,0.00041643,31]
[334233844,1722851446837,-500.0,0.00041643,31]
[334233845,1722851446846,-1212.18,0.00041643,31]
[334233846,1722851446855,-500.0,0.00041643,31]
[334233847,1722851446865,-500.0,0.00041643,31]
[334233848,1722851446875,-207.10887362,0.00041643,31]
[334233849,1722851446884,-500.0,0.00041643,31]
[334233850,1722851446894,-956.98,0.00041643,31]
[334233851,1722851446904,-500.0,0.00041643,31]
[334233852,1722851446913,-500.0,0.00041643,31]
[334233853,1722851446923,-500.0,0.00041643,31]
[334233854,1722851446933,-520.51517694,0.00041643,31]
[334233855,1722851446942,-1103.72,0.00041643,31]
[334233856,1722851446951,-500.0,0.00041643,31]
[334233857,1722851446960,-500.0,0.00041643,31]
[334233858,1722851446970,-500.0,0.00041643,31]
[334233859,1722851446979,-500.0,0.00041643,31]
[334233860,1722851446989,-500.0,0.00041643,31]
[334233861,1722851446998,-500.0,0.00041643,31]
[334233862,1722851447007,-500.0,0.00041643,31]
[334233863,1722851447016,-500.0,0.00041643,31]
[334233864,1722851447031,-500.0,0.00041643,31]
[334233865,1722851447041,-500.0,0.00041643,31]
[334233866,1722851447050,-521.58,0.00041643,31]
[334233867,1722851447060,-500.0,0.00041643,31]
[334233868,1722851447068,-1952.0,0.00041643,31]
[334233869,1722851447078,-500.0,0.00041643,31]
[334233870,1722851447087,-500.0,0.00041643,31]
[334233871,1722851447095,-1266.75,0.00041643,31]
[334233872,1722851447104,-500.0,0.00041643,31]
[334233873,1722851447113,-404.62002121,0.00041643,31]
[334233874,1722851447122,-500.0,0.00041643,31]
[334233875,1722851447132,-500.0,0.00041643,31]
[334233876,1722851447141,-1489.73,0.00041643,31]
[334233877,1722851447151,-500.0,0.00041643,31]
[334233878,1722851447160,-500.0,0.00041643,31]
[334233879,1722851447170,-500.0,0.00041643,31]
[334233880,1722851447179,-500.0,0.00041643,31]
[334233881,1722851447188,-449.02274609,0.00041643,31]
[334233882,1722851447197,-500.0,0.00041643,31]
[334233883,1722851447206,-257.26287464,0.00041643,31]
[334233884,1722851447216,-500.0,0.00041643,31]
[334233885,1722851447225,-514.00227706,0.00041643,31]
[334233886,1722851447234,-500.0,0.00041643,31]
[334233887,1722851447243,-500.0,0.00041643,31]
[334233888,1722851447253,-500.0,0.00041643,31]
[334233889,1722851447262,-500.0,0.00041643,31]
[334233890,1722851447271,-500.0,0.00041643,31]
[334233891,1722851447287,-500.0,0.00041643,31]
[334233892,1722851447296,-500.0,0.00041643,31]
[334233893,1722851447305,-500.0,0.00041643,31]
[334233894,1722851447314,-507.02143207,0.00041643,31]
[334233895,1722851447323,-500.0,0.00041643,31]
[334233896,1722851447333,-821.04,0.00041643,31]
[334233897,1722851447344,-500.0,0.00041643,31]
[334233898,1722851447353,-500.0,0.00041643,31]
[334233899,1722851447365,-587.87,0.00041643,31]
[334233900,1722851447374,-500.0,0.00041643,31]
[334233901,1722851447384,-500.0,0.00041643,31]
[334233902,1722851447394,-500.0,0.00041643,31]
[334233903,1722851447403,-500.0,0.00041643,31]
[334233904,1722851447413,-525.94,0.00041643,31]
[334233905,1722851447423,-500.0,0.00041643,31]
[334233906,1722851447433,-582.82,0.00041643,31]
[334233907,1722851447442,-500.0,0.00041643,31]
[334233908,1722851447452,-530.44956831,0.00041643,31]
[334233909,1722851447461,-500.0,0.00041643,31]
[334233910,1722851447471,-503.76685668,0.00041643,31]
[334233911,1722851447481,-500.0,0.00041643,31]
[334233912,1722851447490,-500.0,0.00041643,31]
[334233913,1722851447500,-934.25,0.00041643,31]
[334233914,1722851447509,-527.57,0.00041643,31]
[334233915,1722851447519,-502.81887793,0.00041643,31]
[334233916,1722851447534,-500.0,0.00041643,31]
[334233917,1722851447544,-1725.9,0.00041643,31]
[334233918,1722851447554,-500.0,0.00041643,31]
[334233919,1722851447563,-500.0,0.00041643,31]
[334233920,1722851447573,-500.0,0.00041643,31]
[334233921,1722851447586,-506.92874567,0.00041643,31]
[334233922,1722851447596,-477.25119731,0.00041643,31]
[334233923,1722851447606,-603.76,0.00041643,31]
[334233924,1722851447616,-500.0,0.00041643,31]
[334233925,1722851447626,-774.93,0.00041643,31]
[334233926,1722851447635,-500.0,0.00041643,31]
[334233927,1722851447645,-500.0,0.00041643,31]
[334233928,1722851447655,-500.0,0.00041643,31]
[334233929,1722851447665,-500.0,0.00041643,31]
[334233930,1722851447674,-500.0,0.00041643,31]
[334233931,1722851447683,-500.0,0.00041643,31]
[334233932,1722851447693,-1146.65,0.00041643,31]
[334233933,1722851447703,-500.0,0.00041643,31]
[334233934,1722851447712,-261.62946527,0.00041643,31]
[334233935,1722851448079,-238.37053473,0.00041643,31]
[334233936,1722851448088,-363.70863995,0.00041643,31]
[334233937,1722851448098,-500.0,0.00041643,31]
[334233938,1722851448108,-1676.37,0.00041643,31]
[334233939,1722851448117,-500.0,0.00041643,31]
[334233940,1722851448127,-500.0,0.00041643,31]
[334233941,1722851448136,-330.86914742,0.00041643,31]
[334233942,1722851448145,-435.6592903,0.00041643,31]
[334233943,1722851448155,-500.0,0.00041643,31]
[334233944,1722851448164,-500.0,0.00041643,31]
[334233945,1722851448174,-500.0,0.00041643,31]
[334233946,1722851448183,-500.0,0.00041643,31]
[334233947,1722851448192,-500.0,0.00041643,31]
[334233948,1722851448202,-500.0,0.00041643,31]
[334233949,1722851448212,-500.0,0.00041643,31]
[334233950,1722851448221,-500.0,0.00041643,31]
[334233951,1722851448231,-500.0,0.00041643,31]
[334233952,1722851448241,-500.0,0.00041643,31]
[334233953,1722851448250,-500.0,0.00041643,31]
[334233954,1722851448259,-500.0,0.00041643,31]
[334233955,1722851448269,-500.0,0.00041643,31]
[334233956,1722851448285,-583.35193908,0.00041643,31]
[334233957,1722851448295,-500.0,0.00041643,31]
[334233958,1722851448304,-500.0,0.00041643,31]
[334233959,1722851448314,-500.0,0.00041643,31]
[334233960,1722851448323,-500.0,0.00041643,31]
[334233961,1722851448333,-500.0,0.00041643,31]
[334233962,1722851448342,-500.0,0.00041643,31]
[334233963,1722851448352,-1429.04,0.00041643,31]
[334233964,1722851448361,-500.0,0.00041643,31]
[334233965,1722851448371,-1294.54,0.00041643,31]
[334233966,1722851448380,-500.0,0.00041643,31]
[334233967,1722851448389,-561.49500905,0.00041643,31]
[334233968,1722851448399,-500.0,0.00041643,31]
[334233969,1722851448409,-910.14,0.00041643,31]
[334233970,1722851448418,-500.0,0.00041643,31]
[334233971,1722851448428,-500.0,0.00041643,31]
[334233972,1722851448437,-3145.79,0.00041643,31]
[334233973,1722851448447,-500.0,0.00041643,31]
[334233974,1722851448457,-500.0,0.00041643,31]
[334233975,1722851448467,-500.0,0.00041643,31]
[334233976,1722851448477,-500.0,0.00041643,31]
[334233977,1722851448487,-500.0,0.00041643,31]
[334233978,1722851448497,-500.0,0.00041643,31]
[334233979,1722851448506,-500.0,0.00041643,31]
[334233980,1722851448516,-504.95764662,0.00041643,31]
[334233981,1722851448532,-500.0,0.00041643,31]
[334233982,1722851448542,-500.0,0.00041643,31]
[334233983,1722851448553,-500.0,0.00041643,31]
[334233984,1722851448572,-500.0,0.00041643,31]
[334233985,1722851448583,-500.0,0.00041643,31]
[334233986,1722851448592,-500.0,0.00041643,31]
[334233987,1722851448603,-856.21,0.00041643,31]
[334233988,1722851448616,-500.0,0.00041643,31]
[334233989,1722851448627,-500.0,0.00041643,31]
[334233990,1722851448637,-500.0,0.00041643,31]
[334233991,1722851448646,-500.0,0.00041643,31]
[334233992,1722851448657,-500.0,0.00041643,31]
[334233993,1722851448666,-1224.93,0.00041643,31]
[334233994,1722851448676,-500.0,0.00041643,31]
[334233995,1722851448685,-507.25951795,0.00041643,31]
[334233996,1722851448695,-500.0,0.00041643,2]
[334233997,1722851448704,-500.0,0.00041643,31]
[334233998,1722851448714,-506.48999627,0.00041643,31]
[334233999,1722851448723,-500.0,0.00041643,31]
[334234000,1722851448733,-507.22732375,0.00041643,31]
[334234001,1722851448742,-768.03,0.00041643,31]
[334234002,1722851448752,-500.0,0.00041643,31]
[334234003,1722851448761,-500.0,0.00041643,31]
[334234004,1722851448771,-500.76363552,0.00041643,31]
[334234005,1722851448789,-500.0,0.00041643,31]
[334234006,1722851448799,-500.0,0.00041643,31]
[334234007,1722851448809,-639.58,0.00041643,31]
[334234008,1722851448819,-500.0,0.00041643,31]
[334234009,1722851448828,-500.0,0.00041643,31]
[334234010,1722851448838,-547.94,0.00041643,31]
[334234011,1722851448848,-500.0,0.00041643,31]
[334234012,1722851448857,-717.54,0.00041643,31]
[334234013,1722851448867,-500.0,0.00041643,31]
[334234014,1722851448878,-500.0,0.00041643,31]
[334234015,1722851448888,-500.0,0.00041643,31]
[334234016,1722851448898,-534.27,0.00041643,31]
[334234017,1722851448909,-500.0,0.00041643,31]
[334234018,1722851448919,-500.0,0.00041643,31]
[334234019,1722851448929,-500.0,0.00041643,31]
[334234020,1722851448939,-1636.49,0.00041643,31]
[334234021,1722851448949,-500.0,0.00041643,31]
[334234022,1722851448959,-4986.58,0.00041643,31]
[334234023,1722851448969,-500.0,0.00041643,31]
[334234024,1722851448978,-500.0,0.00041643,31]
[334234025,1722851448988,-3520.47,0.00041643,31]
[334234026,1722851448997,-500.0,0.00041643,31]
[334234027,1722851449007,-500.0,0.00041643,31]
[334234028,1722851449017,-500.0,0.00041643,31]
[334234029,1722851449033,-502.23152019,0.00041643,31]
[334234030,1722851449045,-500.0,0.00041643,31]
[334234031,1722851449054,-500.0,0.00041643,31]
[334234032,1722851449064,-514.59498789,0.00041643,31]
[334234033,1722851449076,-500.0,0.00041643,31]
[334234034,1722851449085,-3593.21,0.00041643,31]
[334234035,1722851449095,-500.0,0.00041643,31]
[334234036,1722851449104,-500.0,0.00041643,31]
[334234037,1722851449113,-916.7,0.00041643,31]
[334234038,1722851449123,-594.87,0.00041643,31]
[334234039,1722851449133,-761.8,0.00041643,31]
[334234040,1722851449143,-622.43,0.00041643,31]
[334234041,1722851449152,-787.7,0.00041643,31]
[334234042,1722851449162,-531.8,0.00041643,31]
[334234043,1722851449171,-500.0,0.00041643,31]
[334234044,1722851449181,-500.0,0.00041643,31]
[334234045,1722851449191,-500.0,0.00041643,31]
[334234046,1722851449200,-3279.05,0.00041643,21]
[334234047,1722851449210,-500.0,0.00041643,31]
[334234048,1722851449219,-506.05319191,0.00041643,31]
[334234049,1722851449229,-500.0,0.00041643,31]
[334234050,1722851449239,-500.0,0.00041643,31]
[334234051,1722851449249,-500.0,0.00041643,31]
[334234052,1722851449259,-1191.32,0.00041643,31]
[334234053,1722851449269,-501.72868805,0.00041643,31]
[334234054,1722851449286,-548.85401404,0.00041643,31]
[334234055,1722851449296,-500.0,0.00041643,31]
[334234056,1722851449306,-500.0,0.00041643,31]
[334234057,1722851449315,-500.0,0.00041643,31]
[334234058,1722851449325,-500.0,0.00041643,31]
[334234059,1722851449334,-500.0,0.00041643,31]
[334234060,1722851449344,-690.1,0.00041643,31]
[334234061,1722851449353,-500.0,0.00041643,31]
[334234062,1722851449362,-500.0,0.00041643,31]
[334234063,1722851449372,-500.0,0.00041643,31]
[334234064,1722851449382,-3455.93,0.00041643,31]
[334234065,1722851449391,-500.0,0.00041643,31]
[334234066,1722851449401,-500.0,0.00041643,31]
[334234067,1722851449410,-1289.3,0.00041643,31]
[334234068,1722851449420,-1461.14,0.00041643,31]
[334234069,1722851449430,-500.0,0.00041643,31]
[334234070,1722851449440,-500.0,0.00041643,31]
[334234071,1722851449450,-500.0,0.00041643,31]
[334234072,1722851449459,-509.45,0.00041643,31]
[334234073,1722851449469,-1465.54,0.00041643,31]
[334234074,1722851449480,-500.0,0.00041643,31]
[334234075,1722851449490,-500.0,0.00041643,31]
[334234076,1722851449500,-500.0,0.00041643,31]
[334234077,1722851449510,-500.0,0.00041643,31]
[334234078,1722851449520,-500.0,0.00041643,31]
[334234080,1722851449536,-500.0,0.00041643,31]
[334234082,1722851449546,-500.0,0.00041643,31]
[334234083,1722851449557,-500.0,0.00041643,31]
[334234084,1722851449567,-500.0,0.00041643,31]
[334234085,1722851449579,-500.0,0.00041643,31]
[334234086,1722851449588,-853.24,0.00041643,31]
[334234087,1722851449597,-500.0,0.00041643,31]
[334234088,1722851449607,-500.0,0.00041643,31]
[334234089,1722851449617,-501.34757948,0.00041643,31]
[334234090,1722851449627,-508.1231569,0.00041643,31]
[334234091,1722851449636,-1061.99,0.00041643,31]
[334234092,1722851449646,-500.0,0.00041643,31]
[334234093,1722851449658,-500.0,0.00041643,31]
[334234095,1722851449668,-10330.21,0.00041643,31]
[334234097,1722851449678,-500.0,0.00041643,31]
[334234099,1722851449688,-500.0,0.00041643,31]
[334234101,1722851449697,-500.0,0.00041643,31]
[334234103,1722851449707,-621.29,0.00041643,31]
[334234105,1722851449717,-500.0,0.00041643,31]
[334234107,1722851449726,-500.0,0.00041643,31]
[334234109,1722851449736,-500.0,0.00041643,31]
[334234111,1722851449746,-2198.4,0.00041643,31]
[334234113,1722851449756,-500.0,0.00041643,31]
[334234115,1722851449765,-500.0,0.00041643,31]
[334234117,1722851449776,-500.0,0.00041643,31]
[334234119,1722851449791,-1416.98,0.00041643,31]
[334234120,1722851449801,-500.0,0.00041643,31]
[334234122,1722851449810,-500.0,0.00041643,31]
[334234123,1722851449820,-500.0,0.00041643,31]
[334234124,1722851449829,-500.0,0.00041643,31]
[334234125,1722851449838,-1221.36,0.00041643,31]
[334234126,1722851449847,-500.0,0.00041643,31]
[334234127,1722851449857,-1233.08,0.00041643,31]
[334234128,1722851449866,-500.0,0.00041643,31]
[334234129,1722851449875,-500.0,0.00041643,31]
[334234130,1722851449884,-500.0,0.00041643,31]
[334234131,1722851449893,-500.0,0.00041643,31]
[334234132,1722851449902,-500.0,0.00041643,31]
[334234133,1722851449911,-500.0,0.00041643,31]
[334234134,1722851449920,-500.0,0.00041643,31]
[334234135,1722851449929,-500.0,0.00041643,31]
[334234136,1722851449939,-1539.25,0.00041643,31]
[334234137,1722851449948,-647.2,0.00041643,31]
[334234138,1722851449958,-500.0,0.00041643,31]
[334234139,1722851449967,-500.0,0.00041643,31]
[334234140,1722851449976,-500.37,0.00041643,31]
[334234141,1722851449985,-500.0,0.00041643,31]
[334234142,1722851449995,-500.0,0.00041643,31]
[334234143,1722851450005,-500.0,0.00041643,31]
[334234144,1722851450014,-500.0,0.00041643,31]
[334234145,1722851450023,-500.0,0.00041643,31]
[334234146,1722851450040,-500.0,0.00041643,31]
[334234147,1722851450049,-500.0,0.00041643,31]
[334234148,1722851450059,-413.73270297,0.00041643,31]
[334234149,1722851450068,-500.0,0.00041643,31]
[334234150,1722851450078,-500.0,0.00041643,31]
[334234151,1722851450087,-598.34486443,0.00041643,31]
[334234152,1722851450097,-500.0,0.00041643,31]
[334234153,1722851450107,-760.99,0.00041643,31]
[334234154,1722851450115,-834.09,0.00041643,31]
[334234155,1722851450124,-500.0,0.00041643,31]
[334234156,1722851450133,-500.0,0.00041643,31]
[334234157,1722851450143,-626.79,0.00041643,31]
[334234158,1722851450152,-500.0,0.00041643,31]
[334234159,1722851450162,-500.0,0.00041643,31]
[334234160,1722851450171,-500.0,0.00041643,31]
[334234161,1722851450181,-585.41753066,0.00041643,31]
[334234162,1722851450190,-1155.96,0.00041643,31]
[334234163,1722851450199,-500.0,0.00041643,31]
[334234164,1722851450208,-885.58,0.00041643,31]
[334234165,1722851450217,-500.0,0.00041643,31]
[334234166,1722851450226,-6179.17585471,0.00041643,31]
[334234167,1722851450247,-1001.8892494,0.00041643,31]
[334234168,1722851450794,-250.0,0.00019041,2]
[334234169,1722851450803,-1643.15842058,0.00019102,7]
[334234170,1722851450813,-2162.60520141,0.00019256,2]
[334234171,1722851450823,-20759.5327798,0.00019451,2]
[334234172,1722851450832,-154.74467129,0.00021609,2]
[334234173,1722851450841,-154.74467129,0.00021642,2]
[334234174,1722851450852,-500.0,0.00041095,31]
[334234175,1722851450861,-500.0,0.00041095,31]
[334234176,1722851450872,-500.0,0.00041095,31]
[334234177,1722851450883,-500.0,0.00041095,31]
[334234178,1722851450893,-500.0,0.00041095,31]
[334234179,1722851450903,-500.0,0.00041095,31]
[334234180,1722851450913,-500.0,0.00041095,31]
[334234181,1722851450923,-4820.81489589,0.00041643,31]
[334234182,1722851450934,-500.0,0.00041643,31]
[334234183,1722851450944,-500.0,0.00041643,31]
[334234184,1722851450953,-1052.38,0.00041643,31]
[334234185,1722851450963,-12307.04,0.00041643,31]
[334234186,1722851450973,-554.87628328,0.00041643,31]
[334234187,1722851450983,-9064.96,0.00041643,31]
[334234188,1722851450994,-500.0,0.00041643,31]
[334234189,1722851451004,-500.0,0.00041643,31]
[334234190,1722851451014,-500.0,0.00041643,31]
[334234191,1722851451023,-164.15737138,0.00041643,31]
[334234192,1722851451041,-512.1685571,0.00041643,31]
[334234193,1722851451051,-500.0,0.00041643,31]
[334234194,1722851451060,-500.0,0.00041643,31]
[334234195,1722851451070,-678.43,0.00041643,31]
[334234196,1722851451080,-583.4,0.00041643,31]
[334234197,1722851451090,-1112.96,0.00041643,31]
[334234198,1722851451099,-500.0,0.00041643,31]
[334234199,1722851451108,-500.0,0.00041643,31]
[334234200,1722851451118,-974.83,0.00041643,31]
[334234201,1722851451128,-500.0,0.00041643,31]
[334234202,1722851451138,-500.0,0.00041643,31]
[334234203,1722851451148,-500.0,0.00041643,31]
[334234204,1722851451158,-500.0,0.00041643,31]
[334234205,1722851451168,-500.0,0.00041643,31]
[334234206,1722851451178,-1585.46,0.00041643,31]
[334234207,1722851451188,-500.0,0.00041643,31]
[334234208,1722851451197,-21176.49,0.00041643,31]
[334234209,1722851451206,-500.0,0.00041643,31]
[334234210,1722851451216,-1649.64,0.00041643,31]
[334234211,1722851451226,-523.31,0.00041643,31]
[334234212,1722851451235,-854.27,0.00041643,31]
[334234213,1722851451244,-500.0,0.00041643,31]
[334234214,1722851451253,-500.0,0.00041643,31]
[334234215,1722851451263,-500.0,0.00041643,31]
[334234216,1722851451273,-500.0,0.00041643,31]
[334234217,1722851451289,-500.0,0.00041643,31]
[334234218,1722851451299,-500.0,0.00041643,31]
[334234219,1722851451308,-500.0,0.00041643,31]
[334234220,1722851451317,-893.29,0.00041643,31]
[334234221,1722851451327,-500.0,0.00041643,31]
[334234222,1722851451336,-500.0,0.00041643,31]
[334234223,1722851451345,-500.0,0.00041643,31]
[334234224,1722851451354,-500.0,0.00041643,31]
[334234225,1722851451363,-1397.9,0.00041643,31]
[334234226,1722851451374,-500.0,0.00041643,31]
[334234227,1722851451384,-1432.5,0.00041643,31]
[334234228,1722851451394,-500.0,0.00041643,31]
[334234229,1722851451403,-6384.93,0.00041643,31]
[334234230,1722851451413,-500.0,0.00041643,31]
[334234231,1722851451422,-500.0,0.00041643,31]
[334234232,1722851451432,-364.13760186,0.00041643,31]
[334234233,1722851451442,-500.0,0.00041643,31]
[334234234,1722851451452,-500.0,0.00041643,31]
[334234235,1722851451462,-500.0,0.00041643,31]
[334234236,1722851451472,-500.0,0.00041643,31]
[334234237,1722851451482,-7317.23,0.00041643,31]
[334234238,1722851451491,-500.0,0.00041643,31]
[334234239,1722851451502,-1313.88,0.00041643,31]
[334234240,1722851451512,-500.0,0.00041643,31]
[334234241,1722851451522,-500.0,0.00041643,31]
[334234242,1722851451537,-500.0,0.00041643,31]
[334234243,1722851451546,-347.80773739,0.00041643,31]
[334234244,1722851451556,-500.0,0.00041643,31]
[334234245,1722851451568,-500.0,0.00041643,31]
[334234246,1722851451577,-500.0,0.00041643,31]
[334234247,1722851451586,-500.0,0.00041643,31]
[334234248,1722851451595,-500.0,0.00041643,31]
[334234249,1722851451606,-500.0,0.00041643,31]
[334234250,1722851451616,-500.0,0.00041643,31]
[334234251,1722851451626,-500.0,0.00041643,31]
[334234252,1722851451636,-311.29,0.00041643,31]
[334234253,1722851451647,-500.0,0.00041643,31]
[334234254,1722851451657,-500.0,0.00041643,31]
[334234255,1722851451667,-269.73,0.00041643,31]
[334234256,1722851451677,-500.0,0.00041643,31]
[334234257,1722851451687,-501.15138031,0.00041643,31]
[334234258,1722851451697,-370.2,0.00041643,31]
[334234259,1722851451706,-595.27,0.00041643,31]
[334234260,1722851451716,-500.0,0.00041643,31]
[334234261,1722851451726,-500.0,0.00041643,31]
[334234262,1722851451735,-500.0,0.00041643,31]
[334234263,1722851451745,-613.45,0.00041643,31]
[334234264,1722851451755,-443.62,0.00041643,31]
[334234265,1722851451767,-380.99,0.00041643,31]
[334234266,1722851451776,-333.98,0.00041643,31]
[334234267,1722851451796,-500.0,0.00041643,31]
[334234268,1722851451805,-500.0,0.00041643,31]
[334234269,1722851451815,-500.0,0.00041643,31]
[334234270,1722851451824,-500.0,0.00041643,21]
[334234271,1722851451833,-500.0,0.00041643,31]
[334234272,1722851451843,-261.83585373,0.00041643,31]
[334234273,1722851451853,-500.0,0.00041643,31]
[334234274,1722851451862,-500.0,0.00041643,31]
[334234275,1722851451872,-500.0,0.00041643,31]
[334234276,1722851451881,-500.0,0.00041643,31]
[334234277,1722851451891,-512.87472869,0.00041643,31]
[334234278,1722851451900,-214.4865471,0.00041643,31]
[334234279,1722851451910,-500.0,0.00041643,31]
[334234280,1722851451919,-500.0,0.00041643,31]
[334234281,1722851451928,-500.0,0.00041643,31]
[334234282,1722851451938,-505.33547354,0.00041643,31]
[334234283,1722851451947,-483.10143405,0.00041643,31]
[334234284,1722851451955,-502.84856858,0.00041643,31]
[334234285,1722851451964,-500.0,0.00041643,31]
[334234286,1722851451974,-527.06,0.00041643,31]
[334234287,1722851451984,-500.0,0.00041643,31]
[334234288,1722851451995,-500.0,0.00041643,31]
[334234289,1722851452004,-500.0,0.00041643,31]
[334234290,1722851452014,-313.90663541,0.00041643,31]
[334234291,1722851452023,-500.0,0.00041643,31]
[334234292,1722851452039,-499.17,0.00041643,31]
[334234293,1722851452048,-500.0,0.00041643,31]
[334234294,1722851452057,-238.36,0.00041643,31]
[334234295,1722851452067,-500.0,0.00041643,31]
[334234296,1722851452076,-500.0,0.00041643,31]
[334234297,1722851452085,-634.68,0.00041643,31]
[334234298,1722851452094,-338.27,0.00041643,31]
[334234299,1722851452103,-370.86,0.00041643,31]
[334234300,1722851452112,-1563.62,0.00041643,31]
[334234301,1722851452121,-500.0,0.00041643,31]
[334234302,1722851452130,-500.0,0.00041643,31]
[334234303,1722851452139,-157.2,0.00041643,31]
[334234304,1722851452149,-500.0,0.00041643,31]
[334234305,1722851452158,-377.44,0.00041643,31]
[334234306,1722851452167,-500.0,0.00041643,31]
[334234307,1722851452175,-500.0,0.00041643,31]
[334234308,1722851452185,-621.54,0.00041643,31]
[334234309,1722851452195,-508.47,0.00041643,31]
[334234310,1722851452204,-329.64,0.00041643,31]
[334234311,1722851452214,-500.0,0.00041643,31]
[334234312,1722851452223,-500.0,0.00041643,2]
[334234313,1722851452232,-500.0,0.00041643,31]
[334234314,1722851452242,-167.84,0.00041643,31]
[334234315,1722851452252,-729.31,0.00041643,31]
[334234316,1722851452261,-269.5,0.00041643,31]
[334234317,1722851452270,-367.0,0.00041643,31]
[334234318,1722851452282,-500.0,0.00041643,31]
[334234319,1722851452294,-500.0,0.00041643,31]
[334234320,1722851452303,-164.8,0.00041643,31]
[334234321,1722851452312,-500.0,0.00041643,31]
[334234322,1722851452321,-500.0,0.00041643,31]
[334234323,1722851452333,-500.0,0.00041643,31]
[334234324,1722851452342,-473.96,0.00041643,31]
[334234325,1722851452351,-476.72,0.00041643,31]
[334234326,1722851452360,-440.04,0.00041643,31]
[334234327,1722851452370,-500.0,0.00041643,31]
[334234328,1722851452380,-153.6,0.00041643,31]
[334234329,1722851452389,-274.81,0.00041643,31]
[334234330,1722851452399,-500.0,0.00041643,31]
[334234331,1722851452408,-500.0,0.00041643,31]
[334234332,1722851452417,-214.46,0.00041643,31]
[334234333,1722851452427,-500.0,0.00041643,31]
[334234334,1722851452436,-256.73,0.00041643,31]
[334234335,1722851452445,-500.0,0.00041643,31]
[334234336,1722851452455,-500.0,0.00041643,31]
[334234337,1722851452465,-500.0,0.00041643,31]
[334234338,1722851452474,-3958.33,0.00041643,31]
[334234339,1722851452483,-785.62,0.00041643,31]
[334234340,1722851452492,-500.0,0.00041643,31]
[334234341,1722851452502,-304.32,0.00041643,31]
[334234342,1722851452511,-236.4,0.00041643,31]
[334234343,1722851452520,-500.0,0.00041643,31]
[334234344,1722851452536,-500.0,0.00041643,31]
[334234345,1722851452545,-500.0,0.00041643,31]
[334234346,1722851452555,-180.3,0.00041643,31]
[334234347,1722851452565,-175.99,0.00041643,31]
[334234348,1722851452576,-500.0,0.00041643,31]
[334234349,1722851452586,-265.02,0.00041643,31]
[334234350,1722851452595,-261.64,0.00041643,31]
[334234351,1722851452604,-377.74,0.00041643,31]
[334234352,1722851452723,-500.0,0.00041643,31]
[334234353,1722851452732,-500.0,0.00041643,31]
[334234354,1722851452742,-500.0,0.00041643,31]
[334234355,1722851452751,-500.0,0.00041643,31]